Cogmind - Beta 9.3 @@@ ROGUE MODE // 2019.12.25 @ 09:23:26 Player: Demise Result: Smashed by cave-in Performance ------------- Evolutions (0) 0 Regions Visited (1) 200 Robots Destroyed (40) 200 Value Destroyed (815) 815 Prototype IDs (2) 40 Alien Tech Used (0) 0 Bonus (0) 0 TOTAL SCORE: 1255 Bonus ------- None Cogmind --------- Core Integrity 0/250 Matter 182/300 Energy 250/250 System Corruption 1% Temperature Cool (0) Movement Walking (180) Ox2 Location -10/Materials Parts ------- > --- POWER (1) -------- Ion Engine > --- PROPULSION (2) --- Aluminum Leg > --- UTILITY (2) ------ Large Storage Unit > --- WEAPON (2) ------- Grenade Launcher Heavy Hammer > --- INVENTORY (10) --- Large Storage Unit High-capacity Matter Pod (200) Signal Interpreter Improved Terrain Scanner Seismic Analyzer Shield Generator Shield Generator Hacking Suite Grenade Launcher Peak State ------------ > --- POWER ------------ Light Nuclear Core > --- PROPULSION ------- Aluminum Leg Aluminum Leg > --- UTILITY ---------- Medium Storage Unit Sensor Array > --- WEAPON ----------- Heavy EM Pulse Gun Heavy EM Pulse Gun > --- INVENTORY -------- Medium Matter Pod Signal Interpreter Improved Terrain Scanner Seismic Analyzer Shield Generator Shield Generator Grenade Launcher Heavy Hammer [Rating: 12] Favorites ----------- Power Light Ion Engine Engine Light Ion Engine Power Core Light Nuclear Core Propulsion Aluminum Leg Treads Light Treads Leg Aluminum Leg Utility Sensor Array Device Sensor Array Storage Small Storage Unit Weapon Assault Rifle Energy Gun Heavy EM Pulse Gun Ballistic Gun Assault Rifle Launcher Grenade Launcher Impact Weapon Heavy Hammer Build | -11 -10 ------- Run | Scr Mat Slots Evolved . | . . Power . | . . Propulsion . | . . Utility . | . . Weapon . | . . Parts Attached 36 | 8 28 Power 3 | 1 2 Engine 2 | 1 1 Core 1 | . 1 Reactor . | . . Propulsion 9 | 2 7 Treads 2 | 2 . Leg 7 | . 7 Wheel . | . . Hover . | . . Flight . | . . Utility 7 | 3 4 Device 4 | 2 2 Storage 3 | 1 2 Processor . | . . Hackware . | . . Protection . | . . Artifact . | . . Weapon 17 | 2 15 Energy Gun 8 | . 8 Energy Cannon . | . . Ballistic Gun 3 | 2 1 Ballistic Cannon . | . . Launcher 3 | . 3 Special Weapon . | . . Impact Weapon 3 | . 3 Slashing Weapon . | . . Piercing Weapon . | . . Special Melee Weapon . | . . Unidentified Prototypes . | . . Parts Lost 9 | . 9 Power . | . . Propulsion 2 | . 2 Utility 1 | . 1 Weapon 6 | . 6 Highest Loss Streak 5 | . 5 Average Slot Usage (%) 96 | . 96 Engine 5 | . 5 Core 8 | . 8 Treads 3 | . 3 Leg 23 | . 23 Device 12 | . 12 Storage 14 | . 14 Energy Gun 14 | . 14 Ballistic Gun 7 | . 7 Launcher 1 | . 1 Impact Weapon 3 | . 3 Naked Turns . | . . Heaviest Build 28 | 11 28 Greatest Support 40 | 40 40 Greatest Overweight (x) 2 | . 2 Average Overweight (x) . | . . Largest Inventory Capacity 10 | 6 10 Average Capacity 7 | 5 8 Most Carried 10 | 6 10 Average Carried 7 | 5 8 Final Capacity 10 | 6 10 Final Carried 9 | 6 9 Class Distribution -------------------- 100% | Mutant Dominant Class ---------------- Mutant | -10/Materials Resources | -11 -10 ----------- Run | Scr Mat Matter Collected 1191 | 583 608 Remotely 306 | 306 . Salvage Created 1092 | 299 793 Parts 97 | 38 59 Haulers Intercepted 1 | . 1 Recyclers Shooed . | . . Parts Field Recycled . | . . Retrieved Matter . | . . Parts Self-Destructed . | . . Prevented . | . . Kills | -11 -10 ------- Run | Scr Mat Combat Hostiles Destroyed 18 | . 18 Guns 12 | . 12 AOE 6 | . 6 Classes Destroyed 9 | 3 6 Worker 5 | 4 1 Builder 2 | . 2 Tunneler 9 | 9 . Hauler 1 | . 1 Recycler 2 | 1 1 Operator 1 | . 1 Watcher 2 | . 2 Swarmer 3 | . 3 Grunt 15 | . 15 Best Kill Streak 10 | 3 10 Combat Bots Only 3 | . 3 Max Kills in Single Turn 2 | 1 2 Gunslinging . | . . Exploded 2 | . 2 Melee . | . . Uniques/NPCs Destroyed . | . . Combat | -11 -10 -------- Run | Scr Mat Damage Taken 1298 | . 1298 Core 306 | . 306 Absorbed by Shields . | . . Core Remaining (%) 100 | 100 . Volleys Fired 84 | 32 52 Largest 2 | 2 2 Hottest 110 | 40 110 Shots Fired 145 | 64 81 Gun 128 | 64 64 Cannon . | . . Launcher 17 | . 17 Special . | . . Kinetic 76 | 64 12 Thermal 11 | . 11 Explosive 17 | . 17 Electromagnetic 41 | . 41 Robot Hit Streak 16 | 7 16 Robot Miss Streak 3 | 2 3 Penetration Max . | . . Secondary Targets . | . . Shots Hit Robots 96 | 36 60 Core Hits 57 | 18 39 Critical Hits . | . . Critical Kills . | . . Critical Parts Destroyed . | . . Melee Attacks 7 | . 7 Impact 7 | . 7 Slashing . | . . Piercing . | . . Sneak Attacks . | . . Combat Hostiles . | . . Follow-up Attacks . | . . Damage Inflicted 2321 | 370 1951 Guns 966 | 370 596 Cannons . | . . Explosions 1292 | . 1292 Melee 63 | . 63 Ramming . | . . Kinetic 440 | 370 70 Thermal 561 | . 561 Explosive 832 | . 832 Electromagnetic 425 | . 425 Impact 63 | . 63 Slashing . | . . Piercing . | . . Highest Corruption . | . . Average Corruption . | . . Corruption Purged . | . . Overload Shots . | . . Overflow Damage 219 | . 219 Projectiles . | . . Explosions 219 | . 219 Melee . | . . Knockbacks . | . . Impact . | . . Kinetic . | . . Secondary . | . . Self-Inflicted Damage 265 | . 265 Shots 10 | . 10 Rammed . | . . Targets Rammed . | . . Kicked . | . . Crushed . | . . Highest Temperature 207 | . 207 Average Temperature 72 | . 72 Received Heat Transfer 345 | . 345 Siege Activations . | . . Robots Corrupted . | . . Combat Hostiles . | . . Parts Fried 2 | . 2 Impact Corruptions . | . . Robots Melted . | . . Combat Hostiles . | . . Parts Melted . | . . Heat Transferred 636 | . 636 Parts Sabotaged . | . . Parts Stolen . | . . Parts Stripped . | . . Power Chain Reactions 2 | . 2 Missiles Intercepted . | . . Alert | -11 -10 ------- Run | Scr Mat Peak Influence 297 | 55 297 Average Influence 48 | 16 70 Maximum Alert Level 1 | . 1 Low Security (%) 94 | 100 91 Level 1 5 | . 8 Level 2 . | . . Level 3 . | . . Level 4 . | . . Level 5 . | . . High Security . | . . Max Security . | . . Squads Dispatched 2 | . 2 Investigation . | . . Extermination . | . . Reinforcement 2 | . 2 Assault . | . . Garrison . | . . Intercept . | . . Construction Impeded . | . . Haulers Reinforced . | . . Stealth | -11 -10 --------- Run | Scr Mat Distress Signals 1 | . 1 Communications Jammed . | . . Distress Signals . | . . Times Spotted 29 | . 29 Peak Tracking Total 4 | . 4 Tactical Retreats 1 | . 1 Traps | -11 -10 ------- Run | Scr Mat Traps Triggered . | . . Indirectly . | . . Trap Hack Attempts . | . . Triggered . | . . Disarmed . | . . Reprogrammed . | . . Reused . | . . Traps Extracted . | . . Installed . | . . Triggered . | . . Machines | -11 -10 ---------- Run | Scr Mat Machines Disabled 8 | . 8 Max in Single Turn 5 | . 5 Machines Sabotaged . | . . Garrisons Compromised . | . . Overloaded Fab Kills . | . . Fab Network Shutdowns . | . . Hacking | -11 -10 --------- Run | Scr Mat Machines Accessed 5 | . 5 Terminals 4 | . 4 Fabricators . | . . Repair Stations 1 | . 1 Recycling Units . | . . Scanalyzers . | . . Garrison Access . | . . Total Hacks 26 | . 26 Successful 12 | . 12 Failed 14 | . 14 Catastrophic 1 | . 1 Database Lockouts . | . . Manual 8 | . 8 Terminals 19 | . 19 Fabricators . | . . Repair Stations 7 | . 7 Recycling Units . | . . Scanalyzers . | . . Garrison Access . | . . Terminal Hacks 4 | . 4 Prototype ID Bank 1 | . 1 Unreport Threat 2 | . 2 Registered Components 1 | . 1 Fabricator Hacks . | . . Repair Station Hacks 4 | . 4 Scan Component 2 | . 2 Repair 2 | . 2 Recycling Unit Hacks . | . . Scanalyzer . | . . Garrison Access Hacks . | . . Unauthorized Hacks 9 | . 9 Terminals 4 | . 4 Botnet 4 | . 4 Fabricators . | . . Repair Stations . | . . Recycling Units . | . . Scanalyzers . | . . Garrison Access . | . . Data Cores Recovered . | . . Used . | . . Hacking Detections 5 | . 5 Full Trace Events 1 | . 1 Feedback Events . | . . Feedback Blocked . | . . Robot Schematics Acquired . | . . Robots Built . | . . Matter . | . . Time . | . . Total Robot Build Rating . | . . Part Schematics Acquired . | . . Parts Built . | . . Matter . | . . Time . | . . Total Part Build Rating . | . . Parts Repaired 2 | . 2 Time 52 | . 52 Parts Recycled . | . . Recycled Matter . | . . Retrieved Matter . | . . Retrieved Components . | . . Parts Scanalyzed . | . . Part Schematics Acquired . | . . Parts Damaged . | . . Bothacking | -11 -10 ------------ Run | Scr Mat Used RIF Installer . | . . Robots Hacked . | . . Non-combat . | . . Combat . | . . Robot Hacks Applied . | . . Relay Couplers Released . | . . Robots Rewired . | . . Allies Hacked . | . . Hacks Repelled . | . . Allies | -11 -10 -------- Run | Scr Mat Total Allies . | . . Largest Group . | . . Highest-Rated Group . | . . Highest-Rated Ally . | . . Total Orders . | . . Ally Attacks . | . . Total Damage . | . . Kills . | . . Allies Corrupted . | . . Allies Melted . | . . Intel | -11 -10 ------- Run | Scr Mat Robot Analysis Total . | . . Derelict Logs Recovered . | . . Drone Launches . | . . Drone Recoveries . | . . Exploration | -11 -10 ------------- Run | Scr Mat Turns Passed 2458 | 998 1460 Spaces Moved 1306 | 552 754 Core 1 | 1 . Treads 631 | 551 80 Legs 674 | . 674 Wheels . | . . Hover . | . . Flight . | . . Fastest Speed 50 | 50 120 Average Speed 148 | 159 140 Slowest Speed 180 | 160 180 Overloaded Moves . | . . Propulsion Burnouts . | . . Robots Hopped . | . . Cave-ins Triggered 1 | . 1 Exploration Rate (%) 44 | 16 72 Regions Visited 1 Branch Regions . Pre-discovered Areas . | . . Known Exits Taken . | . . Unknown Exits Taken 1 | 1 . Scrap Searched . | . . Spaces Dug 3 | . 3 Terrain Destroyed 88 | . 88 Melee 3 | . 3 Projectile . | . . AOE 85 | . 85 Actions | -11 -10 --------- Run | Scr Mat Total 1679 | 616 1063 Wait 195 | 5 190 Move 1305 | 551 754 Hop . | . . Pick Up 24 | 13 11 Fast Attach 20 | 7 13 Attach 4 | 1 3 Detach 3 | . 3 Swap 12 | . 12 Drop 25 | 7 18 Fire 84 | 32 52 Melee 7 | . 7 Ram . | . . Kick . | . . Crush . | . . Escape Stasis . | . . Rewire . | . . Trap . | . . Miscellaneous . | . . Route ------- -11/Scrapyard -10/Materials (discovered 3 exits: [*Mat] / [*Min x2]) History --------- Turn | Location | Event 16 | -11/Scrapyard | Discovered new exit (range 15) 999 | -11/Scrapyard | Entered Materials 1007 | -10/Materials | Discovered new exit (range 14) 1008 | -10/Materials | Build established: Mutant 1289 | -10/Materials | Repaired Assault Rifle 1317 | -10/Materials | Repaired Med. Matter Pod 1724 | -10/Materials | Discovered new exit (range 5) 1992 | -10/Materials | Discovered new exit (range 9) 2310 | -10/Materials | Core integrity fell below 50% 2366 | -10/Materials | Lost 5 parts (1n1u3w) 2432 | -10/Materials | Core integrity fell below 20% 2460 | -10/Materials | Crushed by falling debris 2460 | -10/Materials | Smashed by cave-in Last Messages --------------- 02424_ K-01 Serf collects debris. 02424_ U-05 Engineer lays Concrete. 02426_ K-01 Serf collects debris. 02427_ U-05 Engineer lays Concrete. 02427_ K-01 Serf collects debris. 02428_ U-05 Engineer lays Concrete. 02428_ Acquired 16 matter. 02429_ K-01 Serf collects debris. 02430_ U-05 Engineer lays Concrete. 02431_ K-01 Serf collects debris. 02431_ U-05 Engineer lays Concrete. 02438_ Dropped Lgt. Nuclear Core. 02451_ G-34 Mercenary destroyed. 02453_ G-47 Trooper destroyed. 02454_ The unstable cave ceiling collapses. 02454_ 23 Matter crushed. 02460_ The unstable cave ceiling collapses. 02460_ Crushed by falling debris. 02460_ Aluminum Leg destroyed. 02460_ System corrupted by crushing effect (+1). Map ----- +----------------------------------------------------+ | | | | | | | | | | | | | | | | | | | | | | | | | | | ????????#??#######????????????#???????????????? | | ???????????# ???????????????#????????????? | | ?????????#?# """ ##?#???????#????#########???? | | ######?????# """ ################## #???? | | #?????# """ + !! # =!!#???? | | " #?????# # =%########### # " =! #???? | | " #?????# # = #??#??????# # T !! #???? | | " #?????######## #?#???????# + " #???? | | #????????#???# #???#####?# # #???? | | " #????????????# #####"""### ########???? | | " #???#####????# ### "|||"## #????? | | " #???# ######+# # # ""# ##### #????? | | #???# # # @[ # #???# #????? | | #/######## # + = < # #???# #????? | | + ### #* * # #???#!#????? | | ####### # #### # #####+#####? | | #?????# # ##### ## ## = #? | | ########## # " ### ### ## !! #? | | ## ""#"" """"""# ## !!! #? | | "" """ "" # !!! #? | | "T """ "" + #? | | "" """ "" # """ #? | | "" ##### # """ #? | | +#######"" #!! # """ #? | | #!! # #? | | #/ ######+###? | | % #// # #??? | | ########## ## # #??? | | =+ ! ##!! # #??? | | [# ###### + ^""" #??? | | # * #????# # """ #??? | | # ]] =% #????# # """ #??? | | # # # ## = #######+#########??? | | # # # % ##???? | | ########## # "" # #????? | | ?????????# #""" # """ """ " " #????? | | ???????? #"""" + # """ """ "R" #????? | +----------------------------------------------------+ Best States ------------- Heat Dissipation 25 Energy Generation 14 Energy Capacity 250 Matter Stores 300 Matter Capacity 300 Sight Range 16 Robot Scan Range 10 Terrain Scan Range 16 Terrain Scan Density 10 Evasion (%) 40 Recoil Reduction 2 Item Schematics ----------------- None Robot Schematics ------------------ None Fabricated ------------ Nothing Alien Tech Used ----------------- None Achievements -------------- None Challenges ------------ None Game ------ Seed AlloyHypervelocityCompressor Manual? 0 Play Time 00:17:35 Cumulative 153.7 hours Start 2019.12.25 @ 09:07:02 End 2019.12.25 @ 09:23:26 Sessions 1 Manual Loads 0 Difficulty Rogue Special Mode None Game No. 208 Rogue 197 Adventurer 11 Explorer 0 Win Type - Total 0 Types 0/0/0/0/0/0/0 Lore% 48 Gallery% 59 Achievement% 42 Wizard Run 0 Options --------- ASCII 0 Keyboard 1 Movement Numpad Keybinds 0 Fullscreen 1 Font 12/Terminus Map View 83x54 Tactical HUD 1 Map Filters NONE Filters NONE Steam X RUN: 90f57452-a873-4031-874a-b2996daa96b3